bitfinex-derivatives/quotes_ETHF0:USTF0_20250702
["timestamp","ask_amount","ask_price","bid_price","bid_amount"]
[1751483189534,0.77568,2577.1,2577.0,0.77569]
[1751483189840,0.77578,2576.7,2576.6,1.46129]
[1751483190346,0.77581,2576.7,2576.6,0.7758]
[1751483190542,1.10607403,2576.7,2576.4,0.6725]
[1751483190845,0.77584,2576.5,2576.4,0.6725]
[1751483191038,0.7759,2576.3,2576.2,0.6855]
[1751483191233,36.583,2576.4,2575.9,2.0829]
[1751483191443,36.583,2576.4,2576.3,0.7759]
[1751483191644,0.6658,2576.9,2576.2,9.74261766]
[1751483191842,0.6658,2576.9,2576.6,0.77578]
[1751483191843,0.77579,2576.7,2576.6,0.77578]
[1751483192046,1.88148823,2576.7,2576.6,0.77578]
[1751483192448,0.77582,2576.6,2576.5,0.77582]
[1751483192939,1.88124716,2576.7,2576.6,0.77581]
[1751483193135,1.10544822,2576.7,2576.6,0.77581]
[1751483193541,37.69844822,2576.7,2576.6,0.77581]
[1751483193740,36.593,2576.7,2576.6,0.77581]
[1751483193936,58.48682,2577.3,2577.0,0.77564]
[1751483193937,12.06267,2577.1,2577.0,0.77564]
[1751483194140,12.06267,2577.1,2576.4,0.6816]
[1751483194141,1.93923,2577.0,2576.4,0.6816]
[1751483194342,0.77584,2576.5,2576.4,1.45746]
[1751483194743,0.77584,2576.5,2576.4,0.6816]
[1751483195241,1.88110484,2576.5,2576.4,0.6816]
[1751483195544,1.88110484,2576.5,2576.1,2.08634]
[1751483195545,0.77593,2576.2,2576.1,2.08634]
[1751483195744,0.77593,2576.2,2576.1,1.3104]
[1751483195944,1.93984,2576.2,2575.7,0.77607]
[1751483196150,0.77612,2575.6,2575.5,0.77611]
[1751483196343,0.77609,2575.7,2575.6,0.77609]
[1751483196543,36.686,2575.8,2575.5,1.9552]
[1751483196744,0.776,2576.0,2575.5,1.9552]
[1751483196945,36.677,2576.2,2575.6,9.74309766]
[1751483197246,0.77602,2576.0,2575.9,0.776]
[1751483197748,36.677,2576.2,2575.7,3.27819]
[1751483197951,0.77601,2576.0,2575.9,0.77599]
[1751483198150,1.88104568,2576.0,2575.9,0.77599]
[1751483198346,0.776,2576.0,2575.9,0.77599]
[1751483198648,0.77597,2576.1,2576.0,0.77596]
[1751483199550,37.45294,2576.2,2576.1,0.77596]
[1751483199741,0.77594,2576.2,2576.1,0.77596]
[1751483199947,0.77598,2576.1,2576.0,0.77597]
[1751483202154,0.77602,2575.9,2575.8,2.18454]
[1751483202347,37.42202,2575.9,2575.8,0.77604]
[1751483202752,0.77609,2575.8,2575.7,0.77607]
[1751483202943,0.77611,2575.6,2575.5,1.42092]
[1751483203143,1.94007,2575.9,2575.5,0.6448]
[1751483203349,0.77621,2575.4,2575.3,0.77617]
[1751483203550,0.77616,2575.5,2575.4,0.77614]
[1751483203747,0.77616,2575.5,2574.9,2.6942]
[1751483203748,1.356,2576.2,2575.3,7.80281766]
[1751483204055,0.77609,2575.8,2575.7,0.77606]
[1751483204254,0.77604,2575.9,2575.8,0.77605]
[1751483204450,0.77611,2575.7,2575.6,0.77608]
[1751483204753,37.49111,2575.7,2575.6,0.77608]
[1751483205351,36.715,2575.7,2575.6,0.77608]
[1751483206048,41.715,2575.7,2574.6,1.94098]
[1751483206248,41.715,2575.7,2574.5,1.9299]
[1751483206249,1.94053,2575.3,2574.5,1.9299]
[1751483206455,103.986,2575.2,2573.7,3.81454943]
[1751483206650,0.77659,2574.1,2573.9,0.7766]
[1751483206953,0.77664,2573.9,2573.7,0.6944]
[1751483207155,0.77682,2573.3,2573.0,3.81454943]
[1751483207349,0.77682,2573.3,2572.8,1.94239]
[1751483207350,1.94194,2573.4,2572.7,3.81454943]
[1751483207547,0.77687,2573.1,2572.7,3.81454943]
[1751483207746,1.45153,2573.6,2573.0,7.0330524]
[1751483207953,89.016,2573.5,2572.8,7.0330524]
[1751483208153,1.94195,2573.4,2572.3,0.6944]
[1751483208353,0.77694,2572.9,2572.7,0.77697]
[1751483208554,36.931,2572.9,2572.3,0.6944]
[1751483208955,1.2946,2573.4,2572.8,7.0330524]
[1751483209151,41.4413,2573.5,2572.4,1.94262]
[1751483209357,41.4413,2573.5,2572.3,0.6944]
[1751483209358,36.988,2573.4,2573.3,0.7768]
[1751483209555,40.8,2573.5,2573.4,0.77677]
[1751483209751,1.10396556,2573.5,2573.4,0.77677]
[1751483209956,38.11796556,2573.5,2573.4,0.77677]
[1751483210156,37.014,2573.5,2573.4,0.77677]
[1751483210657,1.3514,2573.9,2573.8,0.77665]
[1751483210853,1.3514,2573.9,2573.2,1.94203]
[1751483210854,49.41818675,2573.9,2573.7,0.77667]
[1751483211051,1.10218675,2573.8,2573.7,0.77667]
[1751483211652,1.1037419,2573.8,2573.4,1.94194]
[1751483211853,0.6472,2574.1,2574.0,0.77659]
[1751483212055,50.05893054,2574.1,2574.0,0.77659]
[1751483212455,38.11073054,2574.1,2574.0,0.77659]
[1751483212657,37.007,2574.1,2573.9,0.7766]
[1751483212956,37.007,2574.1,2574.0,0.77659]
[1751483212957,37.004,2574.1,2574.0,0.77659]
[1751483213668,37.80658,2574.1,2573.9,0.77661]
[1751483213855,0.77662,2574.0,2573.8,0.77663]
[1751483214156,0.77666,2573.8,2573.6,0.77669]
[1751483214355,37.019,2573.7,2573.6,0.77669]
[1751483214756,0.77649,2574.4,2573.3,9.78860307]
[1751483214962,51.74078721,2574.3,2574.1,0.77654]
[1751483215157,50.6389,2574.3,2574.1,0.77654]
[1751483215362,50.63891,2574.3,2574.2,0.77653]
[1751483215564,50.96409005,2574.3,2573.3,3.90741]
[1751483215759,1.10169005,2574.2,2574.1,0.77656]
[1751483216062,1.3424,2574.2,2574.1,0.77656]
[1751483216561,49.8684,2574.2,2574.0,0.77657]
[1751483216861,0.77662,2573.9,2573.7,0.77666]
[1751483217054,39.17006,2573.8,2573.6,0.77668]
[1751483217253,37.85069,2573.7,2572.9,1.94229]
[1751483217458,1.3424,2573.6,2573.5,0.77672]
[1751483218059,14.16560307,2573.6,2572.5,1.9426]
[1751483218261,49.1987,2573.5,2573.3,0.77679]
[1751483218457,2.06308,2573.4,2573.2,0.77681]
[1751483218864,1.2863,2573.4,2573.3,0.7768]
[1751483219162,2.06307,2573.4,2573.2,0.77681]
[1751483219466,2.06307,2573.4,2572.7,2.60603]
[1751483219467,1.2863,2573.4,2573.0,0.77689]
[1751483219661,1.94209,2573.2,2572.4,0.6696]
[1751483219862,0.77698,2572.8,2572.6,0.777]
[1751483220065,37.83098,2572.7,2572.5,0.77703]
[1751483220265,37.074,2572.6,2572.3,1.9427]
[1751483220462,1.2863,2573.2,2573.1,0.77686]
[1751483220761,42.24046,2573.5,2572.5,1.94262]
[1751483220762,52.9407,2573.5,2572.8,1.94237]
[1751483220969,37.082,2573.4,2573.3,0.7768]
[1751483221164,41.4637,2573.5,2573.4,0.77677]
[1751483221363,78.5547,2573.5,2573.4,0.77677]
[1751483221565,1.2863,2573.7,2573.6,0.77671]
[1751483221764,2.38864493,2573.7,2573.6,0.77671]
[1751483221965,80.27464493,2573.7,2573.6,0.77671]
[1751483222365,80.27464493,2573.7,2573.0,1.94221]
[1751483222671,1.10234493,2573.6,2573.0,1.94221]
[1751483222964,1.4017,2573.5,2572.6,1.94248]
[1751483223169,1.4017,2573.5,2573.4,0.77677]
[1751483223470,38.5387,2573.5,2572.9,1.94225]
[1751483223662,0.77679,2573.4,2573.2,0.77682]
[1751483223863,1.4017,2573.4,2572.7,4.02373]
[1751483224063,2.17849,2573.4,2573.2,0.77683]
[1751483224268,37.91082,2573.3,2573.2,0.77683]
[1751483224464,37.91082,2573.3,2573.0,0.77687]
[1751483224465,37.134,2573.3,2573.0,0.77687]
[1751483224668,0.77686,2573.2,2573.0,0.77688]
[1751483224867,37.91082,2573.3,2573.1,0.77684]
[1751483225168,37.121,2573.2,2572.5,2.60006]
[1751483225371,37.109,2573.1,2572.5,0.6575]
[1751483225670,0.77689,2573.0,2572.9,0.7769]
[1751483225871,0.77689,2573.0,2572.6,2.0156]
[1751483226168,7.82320307,2572.7,2570.8,9.878]
[1751483226370,38.5565,2572.6,2571.7,1.94322]
[1751483226564,1.10466858,2572.5,2571.9,1.94307]
[1751483226765,37.204,2572.4,2572.0,3.31757]
[1751483226966,37.204,2572.3,2572.1,1.9429]
[1751483227269,11.481,2573.3,2572.8,0.77695]
[1751483227466,0.77691,2573.0,2572.9,0.7769]
[1751483227769,0.6843,2573.2,2572.6,1.94254]
[1751483227969,1.1046169,2573.1,2572.7,1.3305]
[1751483228170,1.8815069,2573.0,2572.9,0.77692]
[1751483228562,1.1046169,2573.0,2572.9,0.77692]
[1751483228762,0.6843,2573.5,2572.7,1.3305]
[1751483228961,1.10793839,2573.4,2573.3,0.77678]
[1751483229263,38.31293839,2573.4,2573.3,0.77678]
[1751483229770,1.10793839,2573.4,2573.3,0.77678]
[1751483230167,38.29593839,2573.4,2573.3,0.77678]
[1751483230672,1.10793839,2573.4,2573.3,0.77678]
[1751483230868,38.29893839,2573.4,2573.3,0.77678]
[1751483232673,1.10793839,2573.4,2573.3,0.77678]
[1751483232874,38.29093839,2573.4,2573.3,0.77678]
[1751483233274,1.10793839,2573.4,2573.3,0.77678]
[1751483233475,1.10793839,2573.4,2573.3,5.77678]
[1751483233876,8.39e-06,2573.4,2573.3,6.41418]
[1751483234076,3.76008523,2574.2,2574.0,0.77659]
[1751483234077,2.31512635,2574.1,2574.0,0.77659]
[1751483234275,2.31512635,2574.1,2573.6,1.94179]
[1751483234276,37.19,2574.1,2573.6,1.94179]
[1751483234477,37.19,2574.1,2574.0,0.77659]
[1751483234671,1.47003,2574.2,2574.1,0.77656]
[1751483234872,0.6935,2574.2,2574.1,0.77656]
[1751483235073,37.8775,2574.2,2574.1,0.77656]
[1751483235274,2.31512635,2574.2,2574.1,0.77656]
[1751483235475,2.31512635,2574.3,2574.2,0.77653]
[1751483235675,39.48412635,2574.3,2574.2,0.77653]
[1751483235874,37.169,2574.3,2574.2,0.77653]
[1751483236377,4.51360523,2574.6,2574.5,0.77644]
[1751483236578,41.67760523,2574.6,2574.5,0.77644]
[1751483236879,0.77647,2574.5,2574.4,0.77645]
[1751483237275,3.84305523,2574.5,2574.4,0.77645]
[1751483237476,42.98541523,2574.6,2574.5,0.77644]
[1751483237879,42.20898523,2574.6,2574.5,0.77644]
[1751483238172,40.19558523,2574.6,2574.5,0.77644]
[1751483238378,4.53646523,2574.7,2574.6,0.77641]
[1751483238570,38.59488,2574.7,2574.6,0.77641]
[1751483238771,0.77644,2574.6,2574.5,0.77642]
[1751483238971,37.90144,2574.6,2574.5,0.77642]
[1751483239177,0.77644,2574.6,2574.5,0.77642]
[1751483239372,39.42713932,2574.6,2574.5,0.77642]
[1751483239683,40.20354932,2574.6,2574.5,0.77642]
[1751483239878,2.31713932,2574.6,2574.5,0.77642]
[1751483240175,39.40813932,2574.6,2574.5,0.77642]
[1751483240479,2.31713932,2574.6,2574.5,0.77642]
[1751483240679,2.31713932,2574.7,2574.6,0.77641]
[1751483240979,37.089,2574.7,2574.6,0.77641]
[1751483241578,2.31713932,2574.9,2574.8,0.77635]
[1751483241775,3.79902932,2575.0,2574.9,0.77632]
[1751483241977,40.10073932,2575.0,2574.9,0.77632]
[1751483242579,37.07,2575.0,2574.9,0.77632]
[1751483243177,0.6838,2575.1,2575.0,0.77629]
[1751483243478,37.7348,2575.1,2575.0,0.77629]
[1751483243875,4.48395932,2575.3,2575.2,0.77623]
[1751483244081,2.31713932,2575.3,2575.2,0.77623]
[1751483244280,0.77625,2575.2,2575.1,0.77624]
[1751483244481,41.52195932,2575.3,2575.2,0.77623]
[1751483244685,3.70773932,2575.3,2575.2,0.77623]
[1751483244879,3.01373932,2575.4,2575.3,0.7762]
[1751483245079,0.6966,2575.4,2575.3,0.7762]
[1751483245982,1.80386088,2575.4,2575.3,0.7762]
[1751483246681,39.60303088,2575.4,2575.3,0.7762]
[1751483246983,39.57803088,2575.4,2575.3,0.7762]
[1751483248782,38.80186088,2575.4,2575.3,0.7762]
[1751483248982,1.10726088,2575.4,2575.3,0.7762]
[1751483249278,1.47206,2575.8,2575.7,0.77608]
[1751483249484,1.79933006,2575.8,2575.7,0.77608]
[1751483249682,38.05833006,2575.8,2575.7,0.77608]
[1751483249883,1.10333006,2575.8,2575.7,0.77608]
[1751483250182,36.95,2575.8,2575.7,0.77608]
[1751483250379,2.07718,2576.1,2575.6,1.94028]
[1751483250582,2.07717,2576.1,2576.0,0.77599]
[1751483250777,38.2412,2576.1,2576.0,0.77599]
[1751483250979,39.01716,2576.1,2576.0,0.77599]
[1751483251181,38.2412,2576.1,2576.0,0.77599]
[1751483251689,0.77601,2576.0,2575.9,0.776]
[1751483251890,37.69701,2576.0,2575.9,0.776]
[1751483252292,1.94005,2575.9,2574.6,9.878]
[1751483252490,3.32357,2575.9,2575.2,1.94054]
[1751483252690,0.77613,2575.6,2575.5,0.77611]
[1751483252885,1.41787,2575.8,2575.7,0.77608]
[1751483253088,2.80137,2575.8,2575.7,0.77608]
[1751483253387,0.77613,2575.6,2575.5,0.77612]
[1751483255594,0.77613,2575.6,2575.3,1.94049]
[1751483255595,0.7761,2575.7,2575.6,0.77608]
[1751483255795,1.3105,2575.7,2575.6,0.77608]
[1751483255998,2.08658,2575.7,2575.6,0.77608]
[1751483256898,38.98158,2575.7,2575.6,0.77608]
[1751483257197,1.41785,2575.8,2575.7,0.77608]
[1751483257498,37.66205,2575.8,2575.7,0.77608]
[1751483257698,36.886,2575.8,2575.7,0.77608]
[1751483257893,37.66205,2575.8,2575.7,0.77608]
[1751483258097,36.886,2575.8,2575.7,0.77608]
[1751483258993,0.77604,2575.9,2575.8,0.77605]
[1751483259298,38.73262909,2575.9,2575.8,0.77605]
[1751483259492,38.72762909,2575.9,2575.8,0.77605]
[1751483259696,0.77609,2575.8,2575.7,0.77606]
[1751483259996,0.77615,2575.6,2575.5,0.77612]
[1751483262098,0.7761,2575.7,2575.6,0.77608]
[1751483262296,3.20035548,2575.7,2575.6,0.77608]
[1751483262496,2.42425548,2575.7,2575.6,0.77608]
[1751483262698,38.68443548,2575.7,2575.6,0.77608]
[1751483262999,37.90835548,2575.7,2575.6,0.77608]
[1751483264104,0.776,2576.0,2575.9,0.77602]
[1751483264294,38.67097436,2576.0,2575.9,0.77602]
[1751483265001,38.67097436,2576.0,2575.7,0.77603]
[1751483265002,0.77608,2575.8,2575.7,0.77603]
[1751483265301,0.77611,2575.7,2575.6,0.77607]
[1751483265494,1.87908436,2575.7,2575.6,0.77607]
[1751483267904,1.10297436,2575.7,2575.6,0.77607]
[1751483268206,0.77609,2575.8,2575.7,0.77605]
[1751483268404,1.8813921,2575.8,2575.7,0.77605]
[1751483269007,38.6323921,2575.8,2575.7,0.77605]
[1751483269304,1.8813921,2575.8,2575.7,0.77605]
[1751483269506,38.6143921,2575.8,2575.7,0.77605]
[1751483270107,1.1053021,2575.8,2575.7,0.77605]
[1751483271510,0.2668821,2575.8,2575.7,5.77605]
[1751483271709,2.31713932,2576.5,2576.4,0.77587]
[1751483272605,41.19024932,2576.6,2576.5,0.77584]
[1751483273003,40.41443932,2576.6,2576.5,0.77584]
[1751483273307,41.19024932,2576.6,2576.5,0.77584]
[1751483273705,40.50514932,2576.6,2576.5,0.77584]
[1751483273906,39.72933932,2576.6,2576.4,0.77585]
[1751483274108,0.77596,2576.2,2576.1,0.77593]
[1751483274512,0.77599,2576.1,2576.0,0.77597]
[1751483274712,37.47699,2576.1,2576.0,0.77597]
[1751483275317,0.77601,2576.0,2575.9,0.77602]
[1751483275509,0.77602,2575.9,2575.8,1.44673]
[1751483275705,0.7761,2575.7,2575.6,0.77608]
[1751483276210,1.3073,2575.8,2575.7,0.77608]
[1751483276610,2.08335,2575.8,2575.7,0.77608]
[1751483277008,0.7761,2575.7,2575.6,0.77609]
[1751483277208,0.7761,2575.7,2575.4,0.77613]
[1751483277209,0.77615,2575.5,2575.4,0.77613]
[1751483277808,2.77215,2575.5,2575.4,0.77613]
[1751483278412,0.77622,2575.3,2575.2,0.7762]
[1751483278611,0.7762,2575.3,2575.2,0.7762]
[1751483279015,3.09329932,2575.5,2575.4,0.77617]
[1751483279210,39.76627932,2575.5,2575.4,0.77617]
[1751483279416,37.44914,2575.5,2575.4,0.77617]
[1751483279618,39.76627932,2575.5,2575.4,0.77617]
[1751483279817,41.09407932,2575.5,2575.4,0.77617]
[1751483280315,41.07607932,2575.5,2575.4,0.77617]
[1751483280510,38.97213932,2575.6,2575.2,1.94056]
[1751483280712,2.32254894,2575.6,2575.5,0.77614]
[1751483280911,38.97754894,2575.7,2575.6,0.77611]
[1751483281109,36.655,2575.7,2575.6,0.77611]
[1751483282114,36.655,2575.7,2575.0,7.82320307]
[1751483282115,0.77622,2575.3,2575.2,0.77621]
[1751483282318,0.77624,2575.2,2575.1,0.77623]
[1751483282715,37.44522,2575.3,2575.2,0.77623]
[1751483283014,3.77231055,2575.6,2575.2,0.77623]
[1751483283211,36.689,2575.5,2575.4,0.77617]
[1751483283416,36.689,2575.5,2575.0,3.26082]
[1751483283417,36.689,2575.5,2575.0,1.3201]
[1751483283616,0.77622,2575.3,2575.2,0.7762]
[1751483283812,68.38081276,2575.3,2573.5,3.81454943]
[1751483284017,10.14624612,2575.0,2574.1,1.94136]
[1751483284219,0.77647,2574.4,2574.3,0.77647]
[1751483284417,48.99347,2574.4,2574.3,0.77647]
[1751483284618,50.09628276,2574.4,2574.2,0.77651]
[1751483284912,1.10281276,2574.3,2574.2,0.77651]
[1751483285118,1.87931276,2574.3,2574.2,0.77651]
[1751483285318,1.10281276,2574.3,2574.2,0.77651]
[1751483285916,93.85081276,2574.3,2574.2,0.77651]
[1751483286323,57.78231276,2574.3,2574.2,0.77651]
[1751483286526,0.77654,2574.2,2574.1,0.77654]
[1751483286722,0.77654,2574.2,2573.8,1.3201]
[1751483286723,3.04414276,2574.2,2573.2,1.94205]
[1751483286921,92.734,2574.3,2572.9,8.13070336]
[1751483286922,1.94156,2573.9,2573.0,1.94222]
[1751483287123,0.77678,2573.4,2573.3,0.77679]
[1751483287427,0.77678,2573.4,2572.9,0.6835]
[1751483287428,0.77672,2573.6,2573.1,1.94217]
[1751483287622,12.7744,2573.8,2573.5,0.77673]
[1751483287828,37.94917085,2573.7,2573.5,0.77673]
[1751483288130,0.77674,2573.5,2573.4,0.77675]
[1751483288528,0.77673,2573.6,2573.5,0.77674]
[1751483288927,0.77675,2573.5,2573.4,0.77676]
[1751483289123,0.77679,2573.4,2573.3,0.7768]
[1751483289525,0.7768,2573.3,2573.2,0.77681]
[1751483289727,1.94211,2573.2,2571.9,0.31903196]
[1751483289927,0.777,2572.7,2572.6,0.777]
[1751483290122,36.856,2572.7,2572.2,1.94284]
[1751483290323,36.87,2572.6,2572.3,1.94277]
[1751483290523,11.382,2572.5,2572.4,2.10538]
[1751483290831,48.246,2572.6,2572.5,0.77704]
[1751483291032,49.06301,2572.7,2572.6,0.77701]
[1751483291332,48.286,2572.7,2572.6,0.77701]
[1751483291531,48.289,2572.7,2572.6,0.77701]
[1751483293627,0.7033,2573.0,2572.9,0.77692]
[1751483293835,49.0073,2573.0,2572.8,0.77694]
[1751483294022,0.77698,2572.8,2572.7,0.77697]
[1751483294632,0.7033,2573.0,2572.1,0.693]
[1751483294827,63.75820307,2574.2,2572.9,7.82320307]
[1751483295033,1.94187,2573.5,2572.4,1.328]
[1751483295328,39.0804,2573.4,2573.0,0.77688]
[1751483295534,0.77687,2573.1,2573.0,0.77688]
[1751483295729,11.384,2573.1,2573.0,0.77689]
[1751483296632,11.384,2573.1,2573.0,2.10489]
[1751483297328,11.384,2573.1,2573.0,7.10489]
[1751483298425,37.035,2573.7,2573.6,0.77671]
[1751483298624,11.385,2573.7,2573.6,0.77671]
[1751483299429,11.385,2573.7,2573.6,2.13111]
[1751483299633,57.41843,2574.2,2574.1,0.77656]
[1751483300228,0.77658,2574.1,2574.0,0.77657]
[1751483300430,57.41845,2574.2,2574.1,0.77656]
[1751483300634,56.6419,2574.2,2574.1,0.77656]
[1751483301134,57.41843,2574.2,2574.1,0.77656]
[1751483301333,0.77659,2574.1,2574.0,0.77657]
[1751483301529,58.81645,2574.2,2574.1,0.77656]
[1751483301735,0.77658,2574.1,2574.0,0.77657]
[1751483302535,58.81644,2574.2,2574.1,0.77656]
[1751483302736,0.77659,2574.1,2574.0,0.77657]
[1751483304235,58.0399,2574.2,2574.1,0.77656]
[1751483304236,56.6419,2574.2,2574.1,0.77656]
[1751483304436,55.935,2574.2,2574.1,0.77656]
[1751483304736,56.71153,2574.2,2574.1,0.77656]
[1751483305137,55.935,2574.2,2574.1,0.77656]
[1751483305336,56.71153,2574.2,2574.1,0.77656]
[1751483305738,55.935,2574.2,2574.1,0.77656]
[1751483306035,11.386,2574.3,2574.2,0.77653]
[1751483306443,12.1625,2574.3,2574.2,0.77653]
[1751483308140,0.77658,2574.1,2574.0,0.77656]
[1751483308443,2.06186,2574.2,2574.1,0.77656]
[1751483308939,12.16252,2574.3,2574.2,0.77653]
[1751483309141,13.25924465,2574.3,2574.2,0.77653]
[1751483309333,14.54454465,2574.3,2574.2,0.77653]
[1751483309741,0.77661,2574.0,2573.9,0.77659]
[1751483309938,36.909,2574.1,2573.8,1.94164]
[1751483310138,36.909,2574.1,2574.0,0.77659]
[1751483310339,37.68556,2574.1,2574.0,0.77659]
[1751483310939,36.909,2574.1,2574.0,0.77659]
[1751483311138,0.77662,2574.0,2573.9,0.77659]
[1751483311334,2.75472,2574.0,2573.9,0.77659]
[1751483311841,1.9781,2574.0,2573.9,0.77659]
[1751483312241,3.07668313,2574.0,2573.9,0.77659]
[1751483312843,1.79248313,2574.0,2573.9,0.77659]
[1751483313343,2.56907313,2574.0,2573.9,0.77659]
[1751483313637,1.79248313,2574.0,2573.9,0.77659]
[1751483313840,1.09858313,2574.0,2573.9,0.77659]
[1751483314445,37.98658313,2574.0,2573.9,0.77659]
[1751483315242,38.76317313,2574.0,2573.9,0.77659]
[1751483315440,0.77671,2573.7,2573.6,0.77667]
[1751483315646,0.77679,2573.5,2573.4,0.77674]
[1751483315938,0.77679,2573.5,2573.0,2.64992]
[1751483315939,0.77683,2573.3,2573.2,0.77679]
[1751483316143,0.77689,2573.2,2573.1,0.77685]
[1751483316339,1.8783539,2573.2,2573.1,0.77685]
[1751483316537,3.2168539,2573.2,2573.1,0.77685]
[1751483318546,2.4399639,2573.2,2573.1,0.77685]
[1751483318744,3.2167939,2573.2,2573.1,0.77685]
[1751483320044,0.77699,2572.8,2572.7,0.77696]
[1751483320346,37.9514639,2572.8,2572.7,0.77696]
[1751483320546,38.7284139,2572.8,2572.7,0.77696]
[1751483320937,37.9454639,2572.8,2572.7,0.77696]
[1751483321142,0.6572,2573.1,2573.0,0.77689]
[1751483321342,38.59276305,2573.1,2573.0,0.77689]
[1751483321945,37.94356305,2573.1,2573.0,0.77689]
[1751483322846,1.10056305,2573.1,2573.0,0.77689]
[1751483323040,36.832,2573.2,2573.1,0.77686]
[1751483323246,1.1007326,2573.2,2573.1,0.77686]
[1751483323947,1.1007326,2573.2,2573.1,2.08816]
[1751483324547,0.7767,2573.7,2573.1,8.25339]
[1751483324842,37.90944343,2573.6,2573.5,0.77674]
[1751483325447,1.10144343,2573.6,2573.5,0.77674]
[1751483325648,37.89844343,2573.6,2573.5,0.77674]
[1751483326147,1.10144343,2573.6,2573.5,0.77674]
[1751483327048,1.10144343,2573.6,2571.4,7.02905995]
[1751483327243,2.41464343,2573.5,2573.4,0.77677]
[1751483327944,38.66018343,2573.5,2573.4,0.77677]
[1751483328545,37.88344343,2573.5,2573.4,0.77677]
[1751483328746,38.66018343,2573.5,2573.4,0.77677]
[1751483328946,37.88344343,2573.5,2573.4,0.77677]
[1751483329147,38.64318343,2573.5,2573.4,0.77677]
[1751483329649,37.86644343,2573.5,2573.4,0.77677]
[1751483330650,38.64318343,2573.5,2573.4,0.77677]
[1751483330848,37.86644343,2573.5,2573.4,0.77677]
[1751483331044,1.10144343,2573.5,2573.4,0.77677]
[1751483331248,37.83938973,2573.5,2573.4,0.77677]
[1751483331752,37.83938973,2573.5,2573.1,1.94213]
[1751483331948,1.10138973,2573.4,2573.3,0.77677]
[1751483332550,1.87815973,2573.4,2573.3,0.77677]
[1751483332751,1.10138973,2573.4,2573.3,0.77677]
[1751483332953,1.87815973,2573.4,2573.3,0.77677]
[1751483333343,3.80615973,2573.4,2573.3,0.77677]
[1751483334050,3.02938973,2573.4,2573.3,0.77677]
[1751483334254,1.73998973,2573.4,2573.3,0.77677]
[1751483334454,1.94202,2573.3,2572.8,2.62296]
[1751483334652,1.94202,2573.3,2573.0,0.77686]
[1751483334653,0.7769,2573.1,2573.0,0.77686]
[1751483334855,2.77396,2573.2,2573.1,0.77686]
[1751483335054,40.57661289,2573.2,2573.1,0.77686]
[1751483335858,39.79975289,2573.2,2573.1,0.77686]
[1751483336057,38.45315289,2573.2,2573.1,0.77686]
[1751483336460,37.79365289,2573.2,2573.1,0.77686]
[1751483337660,1.10165289,2573.2,2573.1,0.77686]
[1751483337855,1.10165289,2573.2,2572.9,8.97133995]
[1751483337856,0.77692,2573.0,2572.9,0.77689]
[1751483338162,0.77697,2572.8,2572.7,0.77696]
[1751483338360,2.53795545,2572.9,2572.8,0.77696]
[1751483338559,2.53794053,2572.9,2572.8,0.77696]
[1751483338759,39.27994053,2572.9,2572.8,0.77696]
[1751483340160,38.48299053,2572.9,2572.8,0.77696]
[1751483340360,38.60102053,2572.9,2572.8,0.77696]
[1751483340561,0.77696,2572.8,2572.7,0.77696]
[1751483340857,37.49895,2572.9,2572.8,0.77696]
[1751483341053,38.60167145,2572.9,2572.8,0.77696]
[1751483341766,37.82472145,2572.9,2572.8,0.77696]
[1751483342262,1.10272145,2572.9,2572.8,7.80601995]
[1751483342455,0.77681,2573.3,2573.2,0.77683]
[1751483342659,38.59979362,2573.3,2573.2,0.77683]
[1751483342859,39.92239362,2573.3,2573.2,0.77683]
[1751483343263,2.42558362,2573.3,2573.2,0.77683]
[1751483343462,1.10298362,2573.3,2573.2,0.77683]
[1751483343865,1.10298362,2573.3,2573.2,5.77683]
[1751483344066,1.4076,2574.1,2574.0,0.77659]
[1751483344266,39.22558842,2574.1,2573.9,0.7766]
[1751483344562,1.10298842,2574.0,2573.9,0.7766]
[1751483347567,1.87957842,2574.0,2573.9,0.7766]
[1751483347768,1.10298842,2574.0,2573.9,0.7766]
[1751483350167,1.87957842,2574.0,2573.9,0.7766]
[1751483350361,1.10298842,2574.0,2573.9,0.7766]
[1751483352759,6.10298842,2574.0,2573.2,0.7768]
[1751483353063,1.94212,2573.2,2572.4,13.31964]
[1751483353262,39.10518842,2573.1,2572.3,7.02905995]
[1751483353466,39.10518842,2573.1,2573.0,0.77689]
[1751483353467,40.07966,2573.1,2573.0,0.77689]
[1751483353772,3.76409401,2573.1,2573.0,0.77689]
[1751483353967,1.75759401,2573.1,2573.0,0.77689]
[1751483354168,1.10129401,2573.1,2573.0,0.77689]
[1751483354472,1.48268,2573.4,2573.3,0.7768]
[1751483354670,2.58385361,2573.4,2573.3,0.7768]
[1751483355065,3.10767361,2573.4,2572.8,1.94238]
[1751483355370,0.77687,2573.2,2573.1,0.77684]
[1751483355568,1.87804361,2573.2,2573.1,0.77684]
[1751483355765,3.24204361,2573.2,2573.1,0.77684]
[1751483356369,3.24201361,2573.2,2573.1,0.77686]
[1751483357672,0.77689,2573.1,2573.0,0.77688]
[1751483357974,0.77686,2573.1,2573.0,0.77688]
[1751483358868,1.87789065,2573.1,2573.0,0.77688]
[1751483359063,1.10103065,2573.1,2573.0,0.77688]
[1751483359271,38.0817,2573.4,2573.3,0.7768]
[1751483359566,1.80781788,2573.4,2573.3,0.7768]
[1751483359771,1.10191788,2573.4,2572.8,13.32036]
[1751483359967,1.3495,2573.4,2573.3,0.7768]
[1751483360168,2.4514517,2573.4,2573.3,0.7768]
[1751483360363,1.1019517,2573.4,2573.3,0.7768]
[1751483360569,0.6495,2573.7,2573.6,0.77671]
[1751483360872,1.7513818,2573.7,2573.6,0.77671]